fUSD/lending_fUSD_20240619
["ID","MTS","AMOUNT","RATE_DAILY","PERIOD"]
[329864259,1718772634692,-450.01240632,0.0001352,2]
[329864260,1718772634702,-1000.0,0.00013596,2]
[329864261,1718772634713,-12742.12384478,0.00013596,2]
[329864262,1718772634723,-2486.5084,0.00013597,2]
[329864263,1718772634734,-11587.7103,0.00013597,2]
[329864264,1718772634743,-502.0349,0.00013597,2]
[329864265,1718772634754,-228.21858906,0.00013598,2]
[329864266,1718772634764,-11490.24116156,0.00013598,2]
[329864267,1718772634774,-176.77024666,0.00013598,2]
[329864268,1718772634788,-356.85316788,0.00013598,2]
[329864269,1718772634804,-383.42204089,0.00013608,2]
[329864270,1718772634815,-216.40400056,0.00013687,2]
[329864271,1718772634825,-530.87006435,0.00013695,2]
[329864272,1718772634839,-544.20292347,0.00013696,2]
[329864273,1718772634850,-507.39570669,0.00013696,2]
[329864274,1718772634860,-155.23832422,0.00013696,2]
[329864275,1718772634870,-4450.24576652,0.00013696,2]
[329864276,1718772634880,-155.09748155,0.00013696,2]
[329864277,1718772634890,-155.0,0.00013696,2]
[329864278,1718772634901,-1027.62687053,0.00013696,2]
[329864279,1718772635226,-378.73,0.00013696,2]
[329864280,1718772635260,-1697.73264116,0.00013696,2]
[329864281,1718772635270,-339.13723125,0.00013696,2]
[329864282,1718772635280,-193.90684835,0.00013697,2]
[329864283,1718772635289,-538.4252942,0.00013697,2]
[329864284,1718772635298,-237.939115,0.00013697,2]
[329864285,1718772635307,-155.0,0.00013697,2]
[329864286,1718772635317,-155.0,0.00013697,2]
[329864287,1718772635328,-158.55219684,0.00013697,2]
[329864288,1718772635338,-8562.71828218,0.00013697,2]
[329864289,1718772635348,-155.0,0.00013697,2]
[329864290,1718772635358,-2339.46926962,0.00013697,2]
[329864291,1718772635369,-155.08936096,0.00013697,2]
[329864292,1718772635378,-155.0,0.00013697,2]
[329864293,1718772635388,-269.04833844,0.00013697,2]
[329864294,1718772635398,-5226.82124795,0.00013697,2]
[329864295,1718772635408,-14939.88330112,0.00013697,2]
[329864296,1718772635420,-280.85203042,0.00013697,2]
[329864297,1718772635432,-5761.97270198,0.00013697,2]
[329864313,1718772638310,-1554.7574659,0.00013697,2]
[329864314,1718772638491,-4207.32988912,0.00013697,2]
[329864315,1718772638503,-6571.3,0.00013697,2]
[329864316,1718772638541,-1777.0,0.00013697,2]
[329864317,1718772638610,-27185.42234371,0.00013697,2]
[329864319,1718772640086,-433.65476328,0.00013697,2]
[329864320,1718772640098,-358.8200025,0.00013697,2]
[329864321,1718772640110,-8590.43286449,0.00013697,2]
[329864322,1718772640142,-9894.76560632,0.00013697,2]
[329864323,1718772640196,-461.81999999,0.00013697,2]
[329864324,1718772640207,-515.5928677,0.00013697,2]
[329864325,1718772640258,-1088.3299892,0.00013697,2]
[329864326,1718772640300,-17.514214,0.00013697,2]
[329864327,1718772640325,-0.21205504,0.00013697,2]
[329864328,1718772640426,-249149.81751342,0.00013697,2]
[329864329,1718772640437,-3612.32173008,0.00013697,2]
[329864330,1718772640509,-11328.26866453,0.00013697,2]
[329864331,1718772640521,-9417.0797708,0.00013697,2]
[329864332,1718772640534,-337.374,0.00013697,2]
[329864333,1718772641687,-1191.88699385,0.00013697,2]
[329864334,1718772641699,-3258.19472346,0.00013697,2]
[329864340,1718772644566,-846.78,0.0001337,2]
[329864341,1718772644591,-527.36,0.0001337,2]
[329864342,1718772644848,-161.29,0.0001337,2]
[329864343,1718772644871,-19.3274659,0.0001337,2]
[329864344,1718772645385,-145.1825341,0.0001337,2]
[329864345,1718772645407,-89.91867452,0.0001337,2]
[329864365,1718773124087,163.53,9.919e-05,2]
[329864366,1718773141693,154.77493975,0.00025,60]
[329864368,1718773492331,680.029749,9.958e-05,2]
[329864372,1718773531639,1136.03210054,9.958e-05,2]
[329864400,1718773832378,-300.0,9.905e-05,2]
[329864401,1718773832388,-2002.83994516,9.906e-05,2]
[329864402,1718773832397,-922.34529175,9.906e-05,2]
[329864403,1718773832409,-6075.0,9.906e-05,2]
[329864404,1718773832420,-700.0,9.906e-05,2]
[329864405,1718773832461,-8013.58006912,9.906e-05,2]
[329864406,1718773832494,-2150.3945279,9.906e-05,2]
[329864407,1718773832506,-17674.53352636,9.906e-05,2]
[329864408,1718773832515,-256.48968002,9.908e-05,2]
[329864409,1718773832526,-775.35805116,9.955e-05,2]
[329864410,1718773832536,-197.93269314,9.955e-05,2]
[329864411,1718773832547,-150.0,9.955e-05,2]
[329864412,1718773832557,-919.64137807,9.956e-05,2]
[329864413,1718773832566,-484226.96055618,9.957e-05,2]
[329864414,1718773832612,-33047.7265884,9.957e-05,2]
[329864415,1718773832623,-5342.73724327,9.957e-05,2]
[329864434,1718773838311,-527.3426415,9.957e-05,2]
[329864435,1718773838323,-1578.38397629,9.957e-05,2]
[329864436,1718773838335,-2461.70566941,9.957e-05,2]
[329864437,1718773838347,-47562.56452375,9.957e-05,2]
[329864438,1718773838360,-3184.90002,9.957e-05,2]
[329864439,1718773838421,-88044.72317273,9.957e-05,2]
[329864440,1718773838432,-13598.50999999,9.957e-05,2]
[329864441,1718773838538,-12236.20316524,9.957e-05,2]
[329864446,1718773838927,-566.24076289,9.957e-05,2]
[329864447,1718773840269,-843.33416891,9.958e-05,2]
[329864449,1718773840466,-126728.50424524,9.958e-05,2]
[329864450,1718773840480,-9436.33134291,9.958e-05,2]
[329864451,1718773840494,-844.59940527,9.958e-05,2]
[329864452,1718773840506,-840.77658634,9.958e-05,2]
[329864453,1718773840519,-895.98194783,9.958e-05,2]
[329864454,1718773840530,-3325.0,9.958e-05,2]
[329864455,1718773840542,-1960.0,9.958e-05,2]
[329864456,1718773840598,-1420.67068889,9.958e-05,2]
[329864457,1718773840611,-2041.39395642,9.958e-05,2]
[329864458,1718773840642,-27362.46513554,9.958e-05,2]
[329864459,1718773840654,-137438.94333408,9.958e-05,2]
[329864460,1718773840665,-578.06080476,9.958e-05,2]
[329864461,1718773840875,-3166.08867077,9.958e-05,2]
[329864462,1718773840888,-1986.34492326,9.958e-05,2]
[329864463,1718773840900,-3371.3165459,9.958e-05,2]
[329864464,1718773840980,-17160.4602514,9.958e-05,2]
[329864474,1718773843385,-372.22813675,9.958e-05,2]
[329864475,1718773843401,-451.5,9.958e-05,2]
[329864478,1718773843478,-1704.87413917,9.958e-05,2]
[329864479,1718773843490,-205461.18935745,9.958e-05,2]
[329864480,1718773843500,-19800.47976808,9.958e-05,2]
[329864481,1718773843510,-1365.16009841,9.958e-05,2]
[329864482,1718773843519,-20294.29543572,9.958e-05,2]
[329864483,1718773843529,-1000.0,0.00010114,2]
[329864484,1718773843538,-26579.62899795,0.00010115,2]
[329864485,1718773843547,-155.42480894,0.00010271,2]
[329864486,1718773843557,-595.87,0.00010318,2]
[329864487,1718773843566,-420.0,0.00010896,2]
[329864488,1718773843576,-340.74,0.0001129,2]
[329864489,1718773843585,-158.9,0.00011314,2]
[329864490,1718773843595,-3409.87,0.0001147,2]
[329864491,1718773843604,-200.0,0.00011577,2]
[329864492,1718773843614,-250.0,0.00011866,2]
[329864493,1718773843624,-587.0,0.00011985,2]
[329864494,1718773843634,-250.0,0.00012139,2]
[329864495,1718773843643,-1924.05,0.00012149,2]
[329864496,1718773843653,-9305.59,0.00012247,2]
[329864497,1718773843662,-1000.0,0.00012286,2]
[329864498,1718773843671,-354.09,0.00012548,2]
[329864499,1718773843681,-423.43,0.00012578,2]
[329864500,1718773843690,-520.38,0.00012578,2]
[329864501,1718773843700,-354.09,0.00012578,2]
[329864502,1718773843710,-303.2,0.00012578,2]
[329864503,1718773843719,-256.74,0.00012578,2]
[329864504,1718773843729,-192.92,0.00012578,2]
[329864505,1718773843738,-595.87,0.00012582,2]
[329864506,1718773843748,-150.0,0.00012778,2]
[329864507,1718773843757,-527.36,0.00012778,2]
[329864508,1718773843767,-423.43,0.00012778,2]
[329864509,1718773843777,-150.0,0.00012778,2]
[329864510,1718773843787,-164.51,0.00012778,2]
[329864511,1718773843797,-150.0,0.00012778,2]
[329864512,1718773843808,-354.09,0.00012778,2]
[329864513,1718773843819,-150.0,0.00012878,2]
[329864514,1718773843830,-164.51,0.00012878,2]
[329864515,1718773843840,-150.0,0.00012878,2]
[329864516,1718773843850,-354.09,0.00012878,2]
[329864517,1718773843859,-527.36,0.00012878,2]
[329864518,1718773843869,-423.43,0.00012878,2]
[329864519,1718773843879,-666.18217151,0.00012898,2]
[329864520,1718773843887,-423.43,0.00012978,2]
[329864521,1718773843896,-527.36,0.00012978,2]
[329864522,1718773843906,-150.0,0.00012978,2]
[329864523,1718773843915,-150.0,0.00012978,2]
[329864524,1718773843924,-164.51,0.00012978,2]
[329864525,1718773843934,-354.09,0.00012978,2]
[329864526,1718773843943,-300.0,0.00012978,2]
[329864527,1718773843953,-936106.35578357,0.00013,2]
[329864528,1718773844037,-627.49052257,0.00013,2]
[329864529,1718773844049,-414.60325002,0.00013,2]
[329864530,1718773844062,-4003.50300215,0.00013,2]
[329864531,1718773844113,-154100.15702348,0.00013,2]
[329864532,1718773844123,-5117.0,0.00013178,2]
[329864533,1718773844133,-823.0,0.00013184,2]
[329864534,1718773844143,-48073.406,0.0001327,2]
[329864535,1718773844153,-1849.8332018,0.000133,2]
[329864536,1718773844163,-1250.47073675,0.00013368,2]
[329864537,1718773844173,-400.0,0.00013369,2]
[329864539,1718773844183,-500.0,0.00013369,2]
[329864541,1718773844193,-500.0,0.00013369,2]
[329864543,1718773844203,-500.0,0.00013369,2]
[329864545,1718773844212,-500.0,0.00013369,2]
[329864546,1718773844223,-500.0,0.00013369,2]
[329864547,1718773844235,-500.0,0.00013369,2]
[329864548,1718773844244,-500.0,0.00013369,2]
[329864549,1718773844254,-500.0,0.00013369,2]
[329864550,1718773844264,-160.38,0.00013369,2]
[329864551,1718773844274,-300.0,0.0001337,2]
[329864552,1718773844284,-1849.83320174,0.00013386,2]
[329864553,1718773844294,-1038.28393492,0.00013424,2]
[329864554,1718773844304,-182.57487124,0.00013469,2]
[329864555,1718773844315,-3892.7456,0.00013469,2]
[329864556,1718773844324,-3168.48440724,0.0001347,2]
[329864557,1718773844334,-369.79955523,0.0001347,2]
[329864558,1718773844343,-1682.6953981,0.00013471,2]
[329864559,1718773844355,-167.13780364,0.00013471,2]
[329864560,1718773844366,-1189.16889731,0.000135,2]
[329864561,1718773844378,-11552.95494747,0.000135,2]
[329864562,1718773844388,-290.0,0.00013527,2]
[329864563,1718773844398,-5164.0,0.00013527,2]
[329864564,1718773844408,-1196.0,0.00013527,2]
[329864565,1718773844419,-38133.0,0.00013527,2]
[329864566,1718773844428,-5795.0,0.00013527,2]
[329864567,1718773844438,-1659.0,0.00013527,2]
[329864568,1718773844448,-1067.0,0.00013527,2]
[329864569,1718773844458,-1849.83320174,0.00013557,2]
[329864570,1718773844467,-253.62978949,0.00013558,2]
[329864571,1718773844477,-2315.08477754,0.00013567,2]
[329864572,1718773844487,-171.22394595,0.00013567,2]
[329864573,1718773844496,-155.06411855,0.00013568,2]
[329864574,1718773844505,-57626.22077333,0.0001357,2]
[329864575,1718773844515,-685.783858,0.0001357,2]
[329864576,1718773844798,-151.0,0.0001357,2]
[329864577,1718773844808,-685.783858,0.0001357,2]
[329864578,1718773844819,-151.0,0.0001357,2]
[329864579,1718773844829,-151.0,0.0001357,2]
[329864580,1718773844838,-151.0,0.0001357,2]
[329864581,1718773844848,-155.623033,0.0001357,2]
[329864582,1718773844859,-1500.783269,0.0001357,2]
[329864583,1718773844872,-1500.783269,0.0001357,2]
[329864584,1718773844881,-151.0,0.0001357,2]
[329864585,1718773844891,-154.467003,0.0001357,2]
[329864586,1718773844901,-151.0,0.0001357,2]
[329864587,1718773844911,-151.0,0.0001357,2]
[329864588,1718773844923,-151.0,0.0001357,2]
[329864589,1718773844934,-182.57487124,0.00013577,2]
[329864590,1718773844943,-401.9334,0.00013596,2]
[329864591,1718773844952,-151.0,0.00013598,2]
[329864592,1718773844962,-151.0,0.00013598,2]
[329864593,1718773844971,-1017.0,0.000136,2]
[329864594,1718773844981,-150.0,0.0001364,2]
[329864595,1718773844992,-1849.83320174,0.00013643,2]
[329864596,1718773845001,-150.0,0.00013684,2]
[329864597,1718773845011,-182.57487124,0.00013685,2]
[329864598,1718773845021,-5549.8008049,0.00013685,2]
[329864599,1718773845031,-1611.2324918,0.00013685,2]
[329864600,1718773845041,-85409.6893656,0.00013685,2]
[329864601,1718773845051,-1491.5398984,0.00013694,2]
[329864602,1718773845062,-326.1176397,0.00013694,2]
[329864603,1718773845072,-227.85437006,0.00013695,2]
[329864604,1718773845082,-157.44385712,0.00013695,2]
[329864605,1718773845091,-171.18902341,0.00013695,2]
[329864606,1718773845100,-412.00311273,0.00013696,2]
[329864607,1718773845109,-181.68427782,0.00013698,2]
[329864608,1718773845121,-500.0,0.00013698,2]
[329864609,1718773845131,-500.0,0.00013698,2]
[329864610,1718773845142,-500.0,0.00013698,2]
[329864611,1718773845151,-500.0,0.00013698,2]
[329864612,1718773845160,-500.0,0.00013698,2]
[329864613,1718773845170,-500.0,0.00013698,2]
[329864614,1718773845179,-500.0,0.00013698,2]
[329864615,1718773845188,-500.0,0.00013698,2]
[329864616,1718773845199,-500.0,0.00013698,2]
[329864617,1718773845208,-500.0,0.00013698,2]
[329864618,1718773845218,-500.0,0.00013698,2]
[329864619,1718773845228,-500.0,0.00013698,2]
[329864620,1718773845241,-500.0,0.00013698,2]
[329864621,1718773845250,-365.67769885,0.00013698,2]
[329864622,1718773845261,-633.83697859,0.00013698,2]
[329864623,1718773845270,-500.0,0.00013698,2]
[329864624,1718773845280,-508.96795013,0.00013698,2]
[329864625,1718773845290,-200.0,0.00013698,2]
[329864626,1718773845300,-500.0,0.00013698,2]
[329864627,1718773845311,-500.0,0.00013698,2]
[329864628,1718773845320,-500.0,0.00013698,2]
[329864629,1718773845329,-895.67,0.00013698,2]
[329864630,1718773845339,-500.0,0.00013698,2]
[329864631,1718773845348,-500.0,0.00013698,2]
[329864632,1718773845357,-500.0,0.00013698,2]
[329864633,1718773845368,-500.0,0.00013698,2]
[329864634,1718773845377,-502.50058053,0.00013698,2]
[329864635,1718773845386,-500.0,0.00013698,2]
[329864636,1718773845395,-500.0,0.00013698,2]
[329864637,1718773845405,-500.0,0.00013698,2]
[329864638,1718773845415,-500.0,0.00013698,2]
[329864639,1718773845424,-500.0,0.00013698,2]
[329864640,1718773845433,-500.0,0.00013698,2]
[329864641,1718773845442,-622.55,0.00013698,2]
[329864642,1718773845451,-362.86773058,0.00013698,2]
[329864643,1718773845461,-801.84,0.00013698,2]
[329864644,1718773845470,-500.0,0.00013698,2]
[329864645,1718773845480,-500.0,0.00013698,2]
[329864646,1718773845489,-500.0,0.00013698,2]
[329864647,1718773845498,-1001.57,0.00013698,2]
[329864648,1718773845508,-548.03336391,0.00013698,2]
[329864649,1718773845517,-500.0,0.00013698,2]
[329864650,1718773845527,-500.0,0.00013698,2]
[329864651,1718773845536,-713.49,0.00013698,2]
[329864652,1718773845545,-500.0,0.00013698,2]
[329864653,1718773845555,-500.0,0.00013698,2]
[329864654,1718773845564,-524.95878224,0.00013698,2]
[329864655,1718773845573,-500.0,0.00013698,2]
[329864656,1718773845583,-500.0,0.00013698,2]
[329864657,1718773845592,-503.64246499,0.00013698,2]
[329864658,1718773845601,-541.33,0.00013698,2]
[329864659,1718773845611,-500.0,0.00013698,2]
[329864660,1718773845621,-898.24,0.00013698,2]
[329864661,1718773845631,-960.35,0.00013698,2]
[329864662,1718773845640,-500.0,0.00013698,2]
[329864663,1718773845650,-500.0,0.00013698,2]
[329864664,1718773845659,-500.0,0.00013698,2]
[329864665,1718773845669,-505.5827078,0.00013698,2]
[329864666,1718773845678,-151.96243,0.00013698,2]
[329864667,1718773845688,-500.0,0.00013698,2]
[329864668,1718773845697,-906.96,0.00013698,2]
[329864669,1718773845707,-906.96,0.00013698,2]
[329864670,1718773845717,-906.96,0.00013698,2]
[329864671,1718773845726,-906.96,0.00013698,2]
[329864672,1718773845736,-906.96,0.00013698,2]
[329864673,1718773845745,-906.96,0.00013698,2]
[329864674,1718773845754,-906.96,0.00013698,2]
[329864675,1718773845763,-906.96,0.00013698,2]
[329864676,1718773845772,-906.96,0.00013698,2]
[329864677,1718773845782,-906.96,0.00013698,2]
[329864678,1718773845792,-906.96,0.00013698,2]
[329864679,1718773845801,-500.0,0.00013698,2]
[329864680,1718773845810,-528.09325616,0.00013698,2]
[329864681,1718773845820,-639.35,0.00013698,2]
[329864682,1718773845830,-500.0,0.00013698,2]
[329864683,1718773845840,-1498.25,0.00013698,2]
[329864684,1718773845850,-500.0,0.00013698,2]
[329864685,1718773845859,-500.0,0.00013698,2]
[329864686,1718773845872,-671.02,0.00013698,2]
[329864687,1718773845882,-500.0,0.00013698,2]
[329864688,1718773845891,-500.0,0.00013698,2]
[329864689,1718773845905,-500.0,0.00013698,2]
[329864690,1718773845915,-1292.18,0.00013698,2]
[329864691,1718773845924,-500.0,0.00013698,2]
[329864692,1718773845934,-1600.68,0.00013698,2]
[329864693,1718773845943,-1004.68,0.00013698,2]
[329864694,1718773845953,-500.0,0.00013698,2]
[329864695,1718773845963,-524.8416934,0.00013698,2]
[329864696,1718773845972,-500.0,0.00013698,2]
[329864697,1718773845981,-82.46615666,0.00013698,2]
[329864698,1718773846680,-605.77384334,0.00013698,2]
[329864699,1718773846692,-500.0,0.00013698,2]
[329864700,1718773846701,-575.66,0.00013698,2]
[329864701,1718773846711,-1358.99,0.00013698,2]
[329864702,1718773846722,-859.38,0.00013698,2]
[329864703,1718773846731,-324.0839772,0.00013698,2]
[329864705,1718773847440,-673.47350904,9.957e-05,2]
[329864706,1718773847450,-295.36956137,0.00013698,2]
[329864707,1718773847459,-500.0,0.00013698,2]
[329864708,1718773847468,-789.84,0.00013698,2]
[329864709,1718773847477,-533.14658111,0.00013698,2]
[329864710,1718773847486,-626.36903771,0.00013698,2]
[329864711,1718773847495,-500.0,0.00013698,2]
[329864712,1718773847505,-2.93665693,0.00013698,2]
[329864713,1718773847516,-559.49203103,0.00013698,2]
[329864714,1718773847525,-529.16685397,0.00013698,2]
[329864715,1718773847535,-500.0,0.00013698,2]
[329864716,1718773847544,-219.29723155,0.00013698,2]
[329864717,1718773847553,-500.0,0.00013698,2]
[329864718,1718773847562,-193.84958124,0.00013698,2]
[329864719,1718773847574,-306.15041876,0.00013698,2]
[329864720,1718773847583,-179.97922725,0.00013698,2]
[329864721,1718773847594,-1229.60077275,0.00013698,2]
[329864722,1718773847603,-500.0,0.00013698,2]
[329864723,1718773847613,-503.1054568,0.00013698,2]
[329864724,1718773847623,-500.0,0.00013698,2]
[329864725,1718773847632,-500.0,0.00013698,2]
[329864726,1718773847641,-162.444262,0.00013698,2]
[329864727,1718773847650,-500.0,0.00013698,2]
[329864728,1718773847659,-500.0,0.00013698,2]
[329864729,1718773847668,-565.82,0.00013698,2]
[329864730,1718773847677,-500.0,0.00013698,2]
[329864731,1718773847686,-429.87726142,0.00013698,2]
[329864732,1718773847695,-500.0,0.00013698,2]
[329864733,1718773847705,-500.0,0.00013698,2]
[329864734,1718773847715,-483.98179611,0.00013698,2]
[329864735,1718773847724,-1182.08,0.00013698,2]
[329864736,1718773847733,-241.0960779,0.00013698,2]
[329864737,1718773847744,-500.0,0.00013698,2]
[329864738,1718773847753,-1120.63,0.00013698,2]
[329864739,1718773847762,-500.0,0.00013698,2]
[329864740,1718773847772,-627.99,0.00013698,2]
[329864741,1718773848061,-500.0,0.00013698,2]
[329864742,1718773848071,-500.0,0.00013698,2]
[329864743,1718773848082,-500.0,0.00013698,2]
[329864744,1718773848094,-500.0,0.00013698,2]
[329864745,1718773848105,-1667.23,0.00013698,2]
[329864746,1718773848117,-500.0,0.00013698,2]
[329864747,1718773848127,-662.83,0.00013698,2]
[329864748,1718773848136,-1089.05,0.00013698,2]
[329864749,1718773848145,-500.0,0.00013698,2]
[329864750,1718773848154,-500.0,0.00013698,2]
[329864751,1718773848163,-500.0,0.00013698,2]
[329864752,1718773848172,-500.0,0.00013698,2]
[329864753,1718773848181,-500.0,0.00013698,2]
[329864754,1718773848191,-500.0,0.00013698,2]
[329864755,1718773848201,-89.43243911,0.00013698,2]
[329864756,1718773848215,-524.25756089,0.00013698,2]
[329864757,1718773848225,-503.11546278,0.00013698,2]
[329864758,1718773848236,-500.0,0.00013698,2]
[329864759,1718773848246,-500.0,0.00013698,2]
[329864760,1718773848255,-819.89,0.00013698,2]
[329864761,1718773848265,-866.19,0.00013698,2]
[329864762,1718773848274,-1220.93,0.00013698,2]
[329864763,1718773848286,-1375.71,0.00013698,2]
[329864764,1718773848296,-513.94155526,0.00013698,2]
[329864765,1718773848306,-500.0,0.00013698,2]
[329864766,1718773848318,-500.0,0.00013698,2]
[329864767,1718773848327,-500.0,0.00013698,2]
[329864768,1718773848337,-972.93,0.00013698,2]
[329864769,1718773848349,-180.33502142,0.00013698,2]
[329864770,1718773848359,-500.0,0.00013698,2]
[329864771,1718773848370,-624.43,0.00013698,2]
[329864772,1718773848379,-500.0,0.00013698,2]
[329864773,1718773848389,-500.0,0.00013698,2]
[329864774,1718773848398,-500.0,0.00013698,2]
[329864775,1718773848407,-500.0,0.00013698,2]
[329864776,1718773848416,-819.64,0.00013698,2]
[329864777,1718773848425,-500.0,0.00013698,2]
[329864778,1718773848436,-500.0,0.00013698,2]
[329864779,1718773848445,-805.86,0.00013698,2]
[329864780,1718773848456,-597.21,0.00013698,2]
[329864781,1718773848466,-500.0,0.00013698,2]
[329864782,1718773848476,-500.0,0.00013698,2]
[329864783,1718773848486,-862.13,0.00013698,2]
[329864784,1718773848495,-500.0,0.00013698,2]
[329864785,1718773848504,-500.0,0.00013698,2]
[329864786,1718773848513,-953.27,0.00013698,2]
[329864787,1718773848523,-678.96,0.00013698,2]
[329864788,1718773848533,-500.0,0.00013698,2]
[329864789,1718773848543,-500.0,0.00013698,2]
[329864790,1718773848553,-500.0,0.00013698,2]
[329864791,1718773848562,-500.0,0.00013698,2]
[329864792,1718773848571,-500.0,0.00013698,2]
[329864793,1718773848582,-500.0,0.00013698,2]
[329864794,1718773848591,-500.0,0.00013698,2]
[329864795,1718773848600,-647.5,0.00013698,2]
[329864796,1718773848610,-823.51,0.00013698,2]
[329864797,1718773848620,-500.0,0.00013698,2]
[329864798,1718773848630,-500.0,0.00013698,2]
[329864799,1718773848639,-500.0,0.00013698,2]
[329864800,1718773848649,-519.75909388,0.00013698,2]
[329864801,1718773848658,-1044.69,0.00013698,2]
[329864802,1718773848668,-500.0,0.00013698,2]
[329864803,1718773848677,-500.0,0.00013698,2]
[329864804,1718773848686,-816.32,0.00013698,2]
[329864805,1718773848695,-500.0,0.00013698,2]
[329864806,1718773848705,-516.87717013,0.00013698,2]
[329864807,1718773848714,-500.0,0.00013698,2]
[329864808,1718773848725,-502.61326198,0.00013698,2]
[329864809,1718773848735,-940.03,0.00013698,2]
[329864810,1718773848744,-891.97,0.00013698,2]
[329864811,1718773848753,-502.87900442,0.00013698,2]
[329864812,1718773848762,-500.0,0.00013698,2]
[329864813,1718773848771,-500.0,0.00013698,2]
[329864814,1718773848780,-500.0,0.00013698,2]
[329864815,1718773848789,-500.0,0.00013698,2]
[329864816,1718773848798,-500.0,0.00013698,2]
[329864817,1718773848807,-500.0,0.00013698,2]
[329864818,1718773848816,-500.0,0.00013698,2]
[329864819,1718773848827,-500.0,0.00013698,2]
[329864820,1718773848836,-2682.96,0.00013698,2]
[329864821,1718773848845,-500.0,0.00013698,2]
[329864822,1718773848854,-525.34,0.00013698,2]
[329864823,1718773848864,-614.39,0.00013698,2]
[329864824,1718773848873,-500.0,0.00013698,2]
[329864825,1718773848883,-653.62,0.00013698,2]
[329864826,1718773848892,-500.0,0.00013698,2]
[329864827,1718773848902,-1617.08,0.00013698,2]
[329864828,1718773848911,-500.0,0.00013698,2]
[329864829,1718773848920,-500.0,0.00013698,2]
[329864830,1718773848929,-659.82,0.00013698,2]
[329864831,1718773848938,-500.0,0.00013698,2]
[329864832,1718773848947,-500.0,0.00013698,2]
[329864833,1718773848956,-500.0,0.00013698,2]
[329864834,1718773848965,-500.0,0.00013698,2]
[329864835,1718773848974,-500.0,0.00013698,2]
[329864836,1718773848984,-500.0,0.00013698,2]
[329864837,1718773848993,-500.0,0.00013698,2]
[329864838,1718773849002,-500.0,0.00013698,2]
[329864839,1718773849011,-500.0,0.00013698,2]
[329864840,1718773849021,-500.0,0.00013698,2]
[329864841,1718773849030,-500.0,0.00013698,2]
[329864842,1718773849040,-500.0,0.00013698,2]
[329864843,1718773849049,-500.0,0.00013698,2]
[329864844,1718773849060,-500.0,0.00013698,2]
[329864845,1718773849069,-500.0,0.00013698,2]
[329864846,1718773849079,-500.0,0.00013698,2]
[329864847,1718773849092,-500.0,0.00013698,2]
[329864848,1718773849103,-500.0,0.00013698,2]
[329864849,1718773849113,-648.02,0.00013698,2]
[329864850,1718773849125,-500.0,0.00013698,2]
[329864851,1718773849134,-500.0,0.00013698,2]
[329864852,1718773849143,-507.55,0.00013698,2]
[329864853,1718773849152,-1539.25,0.00013698,2]
[329864854,1718773849161,-1487.78,0.00013698,2]
[329864855,1718773849171,-500.0,0.00013698,2]
[329864856,1718773849180,-500.0,0.00013698,2]
[329864857,1718773849189,-633.32,0.00013698,2]
[329864858,1718773849199,-500.0,0.00013698,2]
[329864859,1718773849209,-819.45,0.00013698,2]
[329864860,1718773849218,-716.56,0.00013698,2]
[329864861,1718773849234,-500.0,0.00013698,2]
[329864862,1718773849244,-500.0,0.00013698,2]
[329864863,1718773849254,-500.0,0.00013698,2]
[329864864,1718773849266,-984.38,0.00013698,2]
[329864865,1718773849275,-1502.15,0.00013698,2]
[329864866,1718773849285,-1366.61,0.00013698,2]
[329864867,1718773849295,-500.0,0.00013698,2]
[329864868,1718773849307,-500.0,0.00013698,2]